bitfinex/quotes_ETHUSD_20240717
["timestamp","ask_amount","ask_price","bid_price","bid_amount"]
[1721227029052,0.07023854,3469.2,3468.5,0.30119752]
[1721227029053,2.88276,3468.9,3468.5,0.30119752]
[1721227029466,2.88293,3468.7,3468.5,0.30119752]
[1721227029907,0.06989371,3468.6,3468.5,0.30119752]
[1721227030769,0.06989371,3468.6,3468.5,8.68903027]
[1721227031013,2.88213,3469.7,3468.8,2.88282]
[1721227031014,2.88232,3469.5,3468.8,2.88282]
[1721227031171,2.88232,3469.5,3468.9,0.55]
[1721227031357,0.07005706,3469.4,3468.9,0.55]
[1721227032099,2.88274,3469.0,3468.6,0.55]
[1721227032259,2.88266,3469.1,3468.6,0.92344275]
[1721227032469,0.07001943,3468.9,3468.6,0.92344275]
[1721227032804,0.0700034,3468.8,3468.6,0.55]
[1721227033292,0.06993281,3468.7,3468.6,0.55]
[1721227033656,2.88284,3468.8,3468.6,0.55]
[1721227033862,0.0699732,3468.7,3468.6,0.55]
[1721227034367,0.06999139,3468.7,3468.6,0.55]
[1721227034566,2.88326,3468.3,3468.1,0.04999001]
[1721227034895,2.88326,3468.3,3467.1,2.443]
[1721227034896,0.06962903,3468.2,3467.0,4.38798566]
[1721227035115,2.88346,3468.1,3467.0,1.50371566]
[1721227035317,2.88401,3467.4,3466.6,2.88463]
[1721227035609,2.88401,3467.4,3466.9,0.30138535]
[1721227035763,0.06943726,3467.3,3466.9,0.30138535]
[1721227036069,2.88418,3467.2,3466.9,0.30138535]
[1721227036273,2.88433,3467.0,3466.9,0.30138535]
[1721227036475,2.88433,3467.0,3465.9,2.88524]
[1721227036476,2.88448,3466.9,3466.1,2.88508]
[1721227036706,0.06908467,3467.0,3466.4,0.30127876]
[1721227036858,0.06903436,3466.8,3466.4,0.30127876]
[1721227037065,0.06906862,3466.9,3466.4,0.30127876]
[1721227037264,2.88453,3466.8,3466.4,0.30127876]
[1721227037602,0.06908642,3466.8,3466.4,0.30127876]
[1721227037817,2.88434,3467.0,3466.4,0.30127876]
[1721227037967,0.06907312,3466.7,3466.4,0.30127876]
[1721227038164,2.88434,3467.0,3466.4,0.30127876]
[1721227038491,1.20267523,3467.9,3466.4,0.30127876]
[1721227038492,0.06910521,3466.9,3466.5,2.88473]
[1721227038668,0.06910521,3466.9,3466.4,0.30127876]
[1721227038871,2.88428,3467.1,3466.5,0.31861788]
[1721227039066,0.06890226,3466.8,3466.5,0.31861788]
[1721227039271,2.8841,3467.3,3466.5,3.20330788]
[1721227039472,0.06894084,3466.7,3466.6,0.55]
[1721227039704,2.8841,3467.3,3466.6,3.43467]
[1721227039882,2.88428,3467.1,3466.6,0.55]
[1721227040088,3.0,3467.7,3466.6,3.4346]
[1721227040286,2.2922,3467.8,3466.6,3.4346]
[1721227040498,2.88401,3467.4,3466.6,3.4346]
[1721227040696,2.2922,3467.8,3466.6,0.55]
[1721227040697,2.88399,3467.5,3466.6,0.55]
[1721227040908,5.17587,3467.8,3466.7,3.25817088]
[1721227041204,2.88398,3467.5,3466.8,0.55]
[1721227041530,2.88376,3467.7,3466.8,0.55]
[1721227041732,2.2922,3467.8,3466.8,3.43448]
[1721227041887,2.88357,3468.0,3467.1,2.88424]
[1721227042082,2.88357,3468.0,3467.2,1.126865]
[1721227042286,5.25454,3468.2,3467.3,2.88407]
[1721227042509,4.380734,3469.3,3467.5,2.88389]
[1721227042510,2.88326,3468.3,3467.5,2.88389]
[1721227042821,2.88302,3468.6,3467.8,2.88366]
[1721227043123,5.25404,3468.8,3467.6,2.88383]
[1721227043124,2.88309,3468.5,3467.6,2.88383]
[1721227043318,2.88309,3468.5,3467.7,1.181782]
[1721227043319,2.88319,3468.4,3467.7,1.181782]
[1721227043520,2.88306,3468.6,3467.7,4.065532]
[1721227043733,2.88292,3468.7,3468.0,2.88348]
[1721227044027,2.88292,3468.7,3467.7,1.181782]
[1721227044028,2.88277,3468.9,3468.1,0.55]
[1721227044192,2.88277,3468.9,3468.2,2.88333]
[1721227044391,2.88273,3469.0,3468.3,3.43324]
[1721227044980,3.0,3468.9,3468.3,3.43324]
[1721227045799,3.0,3468.9,3468.3,0.55]
[1721227046188,5.88276,3468.9,3468.3,0.55]
[1721227046423,2.88315,3468.5,3467.5,2.88386]
[1721227046639,2.88315,3468.5,3467.6,2.88383]
[1721227046923,2.88297,3468.7,3467.6,2.88383]
[1721227046924,2.88317,3468.4,3467.7,2.88372]
[1721227047094,2.95047913,3468.4,3467.8,2.88366]
[1721227047301,2.95047913,3468.4,3467.6,2.88383]
[1721227047499,0.06730913,3468.4,3467.7,0.64022885]
[1721227047683,0.06730913,3468.4,3467.9,2.88357]
[1721227047899,2.883,3468.6,3467.7,2.88371]
[1721227048100,0.06720027,3468.3,3467.7,2.88371]
[1721227048332,2.883,3468.6,3467.7,2.88371]
[1721227048534,0.06718423,3468.2,3467.8,0.55]
[1721227048736,2.88309,3468.5,3467.8,0.55]
[1721227048943,0.06730479,3468.1,3467.3,2.88405]
[1721227049100,3.0,3468.9,3467.3,0.536495]
[1721227049101,2.88368,3467.8,3467.3,0.536495]
[1721227049441,2.88368,3467.8,3466.5,1.7]
[1721227049442,0.06710478,3467.7,3466.9,2.88434]
[1721227049646,2.95085478,3467.7,3466.9,2.88434]
[1721227049948,2.95085478,3467.7,3467.0,2.88433]
[1721227050147,0.06710478,3467.7,3467.2,2.88416]
[1721227050502,2.88368,3467.8,3467.2,2.88416]
[1721227050735,0.06695837,3467.6,3467.3,2.88408]
[1721227050932,0.06710181,3467.7,3467.4,3.43399]
[1721227051139,2.88326,3468.3,3467.6,2.88383]
[1721227051442,2.88335,3468.2,3467.2,2.88415]
[1721227051647,2.8836,3467.9,3467.3,0.55]
[1721227051833,2.8836,3467.9,3467.2,3.43416]
[1721227052343,2.88367,3467.8,3467.2,0.55]
[1721227052531,2.88367,3467.8,3466.9,2.88441]
[1721227052730,2.88367,3467.8,3466.8,0.30116943]
[1721227052731,2.88367,3467.8,3467.1,2.88417]
[1721227052934,2.88337,3468.2,3467.3,2.88407]
[1721227053117,5.76678,3468.2,3467.3,2.88407]
[1721227053312,2.88337,3468.2,3467.3,2.88407]
[1721227053514,2.88347,3468.1,3467.3,2.88407]
[1721227053810,2.88347,3468.1,3467.4,0.55]
[1721227055210,2.8836,3467.9,3467.4,0.55]
[1721227055416,2.88347,3468.1,3467.3,2.88403]
[1721227055617,2.88323,3468.4,3467.7,2.88374]
[1721227055817,2.88323,3468.4,3467.8,0.55]
[1721227055818,2.88326,3468.3,3467.8,0.55]
[1721227056040,2.8831,3468.5,3467.8,0.55]
[1721227056249,5.35705,3468.8,3468.0,2.88349]
[1721227056432,2.88269,3469.0,3468.1,3.43335]
[1721227056765,2.88264,3469.1,3468.4,2.88314]
[1721227056915,2.88267,3469.0,3468.5,0.55]
[1721227057632,2.88267,3469.0,3468.4,3.43316]
[1721227057957,2.88267,3469.0,3468.4,3.74233083]
[1721227058253,2.88265,3469.1,3468.4,4.11656391]
[1721227058611,2.88269,3469.0,3468.4,1.23340391]
[1721227058817,2.88269,3469.0,3468.4,0.85917083]
[1721227060142,2.88297,3468.7,3468.4,0.85917083]
[1721227060454,2.88286,3468.8,3468.4,0.85917083]
[1721227060659,2.3914,3469.3,3468.4,0.85917083]
[1721227060660,2.88273,3469.0,3468.4,0.85917083]
[1721227062145,2.88291,3468.8,3468.4,0.30917083]
[1721227062332,2.88309,3468.5,3468.4,0.30917083]
[1721227062655,8.10879156,3468.5,3468.4,0.30917083]
[1721227062868,10.99188156,3468.5,3468.4,0.30917083]
[1721227063039,8.10879156,3468.5,3468.4,0.30917083]
[1721227063943,2.95000156,3468.5,3468.4,0.30917083]
[1721227064167,0.06691156,3468.5,3468.4,0.30917083]
[1721227065067,0.06709836,3468.5,3468.4,0.30917083]
[1721227065230,0.06709836,3468.5,3468.4,0.85917083]
[1721227066925,2.88302,3468.6,3468.4,0.85917083]
[1721227067126,0.06701496,3468.5,3468.4,0.85917083]
[1721227067821,2.95010496,3468.5,3468.4,0.30917083]
[1721227068073,5.83319496,3468.5,3468.4,0.30917083]
[1721227069422,2.95010496,3468.5,3468.4,0.30917083]
[1721227069728,5.83319496,3468.5,3468.4,0.30917083]
[1721227069927,2.95010496,3468.5,3468.4,0.30917083]
[1721227070168,5.83319496,3468.5,3468.4,0.30917083]
[1721227070383,2.95010496,3468.5,3468.4,0.30917083]
[1721227071875,0.06701496,3468.5,3468.4,0.85917083]
[1721227072238,2.88309,3468.5,3468.4,0.30917083]
[1721227072441,2.94984695,3468.5,3468.4,0.30917083]
[1721227072632,2.93622641,3468.5,3468.4,0.30917083]
[1721227073261,5.81931641,3468.5,3468.4,0.30917083]
[1721227074051,2.94984695,3468.5,3468.4,0.30917083]
[1721227075236,0.06675695,3468.5,3468.4,0.30917083]
[1721227075540,0.06675695,3468.5,3468.4,0.85917083]
[1721227075745,5.88297,3468.7,3468.4,0.85917083]
[1721227076374,2.94762752,3468.6,3468.4,0.55]
[1721227076571,0.06459752,3468.6,3468.4,0.55]
[1721227076738,0.06459752,3468.6,3468.1,0.55]
[1721227076939,0.06459752,3468.6,3468.1,1.181711]
[1721227077837,2.88271,3469.0,3468.4,2.88316]
[1721227078068,0.06466006,3468.9,3468.5,0.55]
[1721227078656,2.94742006,3468.9,3468.5,0.55]
[1721227078856,0.06466006,3468.9,3468.4,0.55]
[1721227079040,0.06466006,3468.9,3468.4,3.8396451]
[1721227079572,0.06466006,3468.9,3468.5,2.88305]
[1721227079790,0.06466006,3468.9,3468.6,0.55]
[1721227079943,2.88261,3469.1,3468.6,0.55]
[1721227080143,0.06447899,3468.8,3468.6,0.55]
[1721227080455,0.06444477,3468.7,3468.6,0.55]
[1721227080653,0.06444477,3468.7,3468.5,0.55]
[1721227080856,2.88273,3469.0,3468.5,0.55]
[1721227081056,2.88328,3468.3,3467.8,0.30126369]
[1721227081367,2.88328,3468.3,3466.8,4.08536433]
[1721227081368,2.88401,3467.4,3466.5,0.05001851]
[1721227081575,2.88383,3467.7,3466.8,2.88448]
[1721227081769,0.06421265,3467.3,3467.0,2.88433]
[1721227082081,0.06361293,3467.2,3467.0,2.88433]
[1721227082448,5.88367,3467.8,3467.0,2.88433]
[1721227082670,2.88375,3467.7,3467.0,2.88433]
[1721227082859,2.94807666,3467.7,3466.8,7.64238]
[1721227083057,2.88384,3467.6,3466.9,2.88435]
[1721227083256,2.94808666,3467.7,3467.0,2.88431]
[1721227083458,0.06420548,3467.5,3467.0,2.88431]
[1721227083795,0.06423972,3467.6,3467.0,2.88431]
[1721227083957,0.06411665,3467.4,3467.0,2.88431]
[1721227084281,0.06408241,3467.3,3467.0,3.705689]
[1721227084463,0.06408241,3467.3,3467.1,0.55]
[1721227084677,2.88384,3467.6,3467.1,0.55]
[1721227084981,0.06399581,3467.2,3467.1,0.55]
[1721227085164,2.88384,3467.6,3467.1,0.55]
[1721227085378,0.06401401,3467.2,3467.1,0.55]
[1721227085688,0.06400428,3467.2,3467.1,0.55]
[1721227085869,2.88384,3467.6,3467.1,0.55]
[1721227086072,0.06402248,3467.2,3467.1,0.55]
[1721227086395,2.88384,3467.6,3467.1,0.55]
[1721227086574,0.12641224,3467.2,3466.5,0.05001851]
[1721227086887,0.06396912,3467.1,3466.6,2.88466]
[1721227087053,0.06240796,3467.2,3466.6,2.88466]
[1721227087251,0.06396912,3467.1,3466.6,2.88466]
[1721227087470,0.06396912,3467.1,3466.7,2.88458]
[1721227087640,2.88409,3467.3,3466.7,2.88458]
[1721227087842,0.06240796,3466.8,3466.7,2.88458]
[1721227088273,0.12630895,3466.8,3466.7,2.88458]
[1721227088485,0.06240796,3466.8,3466.7,3.43458]
[1721227088843,0.06240796,3466.8,3466.7,0.55]
[1721227089048,0.12628366,3466.8,3466.7,0.55]
[1721227089751,0.12628366,3466.8,3466.7,4.54915158]
[1721227089950,0.06240796,3466.8,3466.7,4.54915158]
[1721227090266,0.06240796,3466.8,3466.7,7.43373158]
[1721227093599,0.06240796,3466.8,3466.7,0.55]
[1721227093908,0.12609105,3466.8,3466.5,0.05001851]
[1721227094076,0.12609105,3466.8,3466.3,3.18593]
[1721227094276,0.12609105,3466.8,3466.4,2.88481]
[1721227094579,0.12609105,3466.8,3466.5,2.88474]
[1721227094789,0.12609105,3466.8,3466.4,2.88478]
[1721227095005,0.06240796,3466.8,3466.4,2.88478]
[1721227095187,0.06240796,3466.6,3466.5,0.55]
[1721227095587,0.06240796,3466.6,3466.3,0.30104]
[1721227095778,0.12615891,3466.6,3466.3,0.30104]
[1721227095975,2.94707796,3466.6,3466.3,0.30104]
[1721227096212,0.06360736,3466.5,3466.3,0.30104]
[1721227096414,0.06240796,3466.4,3466.3,0.30104]
[1721227096583,2.94723796,3466.4,3466.3,0.30104]
[1721227096792,5.89559139,3466.4,3466.3,0.30104]
[1721227097372,3.01076139,3466.4,3466.3,0.30104]
[1721227097592,0.12593139,3466.4,3466.3,0.30104]
[1721227098326,0.12593139,3466.4,3466.3,3.50458]
[1721227098628,0.12593139,3466.4,3466.3,8.8345]
[1721227098917,0.06240796,3466.4,3466.3,9.3845]
[1721227099225,0.06240796,3466.4,3466.3,4.05458]
[1721227099922,0.06240796,3466.4,3466.3,0.85104]
[1721227100217,0.12603453,3466.4,3466.3,3.73596]
[1721227100380,0.06240796,3466.4,3466.3,3.73596]
[1721227100772,0.06240796,3466.4,3466.3,0.85104]
[1721227101085,0.06240796,3466.4,3466.3,0.30104]
[1721227101286,0.12605582,3466.4,3466.3,0.30104]
[1721227101909,3.01088582,3466.4,3466.3,0.30104]
[1721227102273,5.89571582,3466.4,3466.3,0.30104]
[1721227102476,2.88508,3466.2,3465.5,2.93547261]
[1721227102698,0.06325652,3466.1,3465.5,2.93547261]
[1721227103699,2.94833652,3466.1,3465.5,0.04990261]
[1721227103916,0.06240796,3465.6,3465.5,0.04990261]
[1721227104282,0.1233273,3465.6,3465.5,0.04990261]
[1721227105219,0.1233273,3465.6,3465.5,0.59990261]
[1721227105511,0.06240796,3465.6,3465.5,0.59990261]
[1721227105677,0.12238553,3465.6,3465.5,0.59990261]
[1721227106079,0.12238553,3465.6,3464.5,2.88638]
[1721227106080,2.88567,3465.4,3464.5,2.88638]
[1721227106299,0.12238553,3465.6,3464.7,2.88623]
[1721227106300,0.05976094,3465.5,3464.7,2.88623]
[1721227106509,0.05967727,3465.3,3464.9,2.88608]
[1721227106680,2.94794796,3465.6,3465.0,2.88598]
[1721227106879,0.06240796,3465.6,3465.0,2.88598]
[1721227107324,0.06240796,3465.6,3465.0,12.88598]
[1721227107618,0.06240796,3465.1,3465.0,14.707686]
[1721227107825,0.06240796,3465.1,3465.0,18.143686]
[1721227109891,0.06240796,3465.1,3465.0,15.257686]
[1721227110199,0.06240796,3465.1,3465.0,13.43598]
[1721227110591,0.06240796,3465.1,3465.0,16.32198]
[1721227111994,0.06240796,3465.1,3465.0,10.0]
[1721227112297,0.06240796,3465.1,3465.0,12.886]
[1721227112526,0.06240796,3465.1,3465.0,10.0]
[1721227112702,0.06240796,3465.1,3465.0,15.772]
[1721227112904,0.06240796,3465.1,3465.0,12.886]
[1721227113515,0.06240796,3465.1,3465.0,18.143714]
[1721227113997,0.06240796,3465.1,3465.0,23.143714]
[1721227115501,0.06240796,3465.1,3465.0,26.029714]
[1721227115708,0.06240796,3465.1,3465.0,28.422014]
[1721227115709,1e-08,3465.1,3465.0,28.422014]
[1721227115923,2.88471,3466.6,3465.9,2.8852]
[1721227116150,2.88471,3466.6,3466.0,0.55]
[1721227116352,2.2788,3466.8,3466.2,2.88498]
[1721227116518,2.2788,3466.8,3466.3,0.55]
[1721227116861,2.2788,3466.8,3466.3,3.43489]
[1721227117143,2.2788,3466.8,3466.3,0.55]
[1721227117365,2.2788,3466.8,3466.3,2.88489]
[1721227117525,2.88439,3467.0,3466.4,0.55]
[1721227117710,2.88439,3467.0,3466.4,3.43482]
[1721227117953,2.88438,3467.0,3466.4,3.43482]
[1721227118122,2.88438,3467.0,3466.4,0.55]
[1721227118646,2.88417,3467.2,3466.4,3.43482]
[1721227119017,5.88433,3467.1,3466.4,3.43482]
[1721227119415,2.88436,3467.0,3466.4,3.43482]
[1721227119756,2.88436,3467.0,3466.4,0.55]
[1721227119921,3.0,3467.1,3465.6,2.445]
[1721227119922,2.88468,3466.6,3465.6,2.445]
[1721227120261,2.88454,3466.8,3465.9,2.88525]
[1721227120555,2.88454,3466.8,3466.1,2.88503]
[1721227120556,2.88453,3466.8,3466.1,2.88503]
[1721227120712,2.88418,3467.2,3466.3,2.8849]
[1721227120913,2.88438,3467.0,3466.1,2.88504]
[1721227121124,2.88438,3467.0,3466.3,2.88485]
[1721227121329,3.0,3467.1,3466.4,3.43483]
[1721227121748,5.88425,3467.1,3466.4,3.43483]
[1721227122022,2.88434,3467.0,3466.4,3.43483]
[1721227122242,2.94025627,3467.0,3466.4,3.43483]
[1721227122650,2.94025627,3467.0,3466.4,0.55]
[1721227122846,2.88442,3466.9,3466.3,0.55]
[1721227123159,0.05584865,3466.8,3466.2,3.43499]
[1721227123364,0.05584865,3466.8,3466.3,2.88485]
[1721227123565,5.88425,3467.1,3466.4,0.55]
[1721227123724,0.0558144,3466.7,3466.4,3.43475]
[1721227123924,3.0,3467.1,3466.4,3.778225]
[1721227124270,2.2834,3467.3,3466.4,3.778225]
[1721227124271,2.2834,3467.3,3466.6,2.88467]
[1721227124562,2.2834,3467.3,3466.7,0.55]
[1721227124563,5.16753,3467.3,3466.7,0.55]
[1721227124768,3.0,3467.2,3466.7,0.55]
[1721227126353,3.0,3467.2,3466.4,8.21456]
[1721227126354,5.88421,3467.2,3466.5,0.55]
[1721227126830,5.88421,3467.2,3466.5,3.43474]
[1721227127453,2.88429,3467.1,3466.5,0.55]
[1721227127653,2.88436,3467.0,3466.5,0.55]
[1721227127858,2.88436,3467.0,3466.4,0.55]
[1721227128647,2.88443,3466.9,3466.4,0.55]
[1721227128831,2.88443,3466.9,3466.3,3.43491]
[1721227130237,2.88456,3466.8,3466.3,0.55]
[1721227130470,2.88443,3466.9,3466.2,0.55]
[1721227130876,2.88428,3467.1,3466.3,2.88486]
[1721227131045,2.88443,3466.9,3466.4,0.55]
[1721227131436,2.88443,3466.9,3466.3,0.55]
[1721227131776,2.88442,3466.9,3466.3,3.43489]
[1721227132753,2.88428,3467.1,3466.4,2.88483]
[1721227133077,2.88428,3467.1,3466.5,0.55]
[1721227133258,2.88428,3467.1,3466.5,3.43474]
[1721227133575,3.0,3467.2,3466.6,2.88461]
[1721227133783,3.0,3467.2,3466.7,0.55]
[1721227134084,2.2834,3467.3,3466.7,3.43454]
[1721227134254,1.49730609,3467.9,3466.7,1.426428]
[1721227134255,5.35001,3467.8,3466.7,1.426428]
[1721227134437,2.88376,3467.7,3466.9,2.88435]
[1721227134779,2.88376,3467.7,3467.0,3.43432]
[1721227135252,2.88376,3467.7,3467.1,2.88425]
[1721227135441,2.88376,3467.7,3467.2,0.55]
[1721227135961,2.4663,3467.8,3466.4,4.929]
[1721227136167,2.8841,3467.3,3466.6,2.88466]
[1721227136470,2.4663,3467.8,3466.1,9.04]
[1721227136471,2.88441,3467.0,3466.2,2.88496]
[1721227136657,2.4663,3467.8,3466.2,1.789871]
[1721227136980,2.88438,3467.0,3466.4,2.88477]
[1721227137179,2.88424,3467.2,3466.4,2.88477]
[1721227137180,2.88424,3467.2,3466.5,2.88468]
[1721227137476,0.05382372,3466.9,3466.5,2.88468]
[1721227137635,2.88424,3467.2,3466.4,2.88477]
[1721227137843,0.05280947,3466.8,3466.6,2.88466]
[1721227138073,2.88424,3467.2,3466.6,2.88466]
[1721227138284,2.88424,3467.2,3466.7,0.55]
[1721227138466,0.05291223,3467.1,3466.7,0.55]
[1721227138840,2.88424,3467.2,3466.7,0.55]
[1721227139045,0.05287797,3467.0,3466.7,0.55]
[1721227139244,0.05291223,3467.1,3466.7,0.55]
[1721227139446,2.88441,3467.0,3466.5,0.55]
[1721227139679,2.88441,3467.0,3466.4,0.55]
[1721227139879,0.05284372,3466.9,3466.4,0.55]
[1721227140185,2.93726372,3466.9,3466.4,0.55]
[1721227140358,2.88452,3466.8,3465.9,3.18585237]
[1721227140543,2.88464,3466.7,3465.9,3.18583237]
[1721227140761,0.05265896,3466.6,3466.3,2.8849]
[1721227140963,2.88419,3467.2,3466.3,2.8849]
[1721227141184,0.05262469,3466.5,3466.3,2.8849]
[1721227141384,2.88419,3467.2,3466.4,2.88483]
[1721227141594,5.88425,3467.1,3466.4,2.88483]
[1721227141798,2.88433,3467.0,3466.5,0.55]
[1721227141985,8.23467,3467.4,3466.6,2.88466]
[1721227142297,8.23467,3467.4,3466.5,0.55]
[1721227142298,8.23467,3467.4,3466.7,3.43456]
[1721227142668,8.23465,3467.4,3466.7,3.43456]
[1721227143076,8.23465,3467.4,3466.8,2.88449]
[1721227143280,4.08638523,3467.8,3466.9,0.55]
[1721227143606,1.20267523,3468.3,3467.3,2.88403]
[1721227143791,8.06525,3468.4,3467.8,2.88362]
[1721227143792,2.2988,3468.4,3467.8,2.88362]
[1721227144106,2.2988,3468.4,3467.9,0.55]
[1721227145379,3.67637523,3468.9,3468.1,2.88342]
[1721227145618,3.67637523,3468.9,3468.2,3.43333]
[1721227145619,2.4737,3468.9,3468.2,3.43333]
[1721227145822,1.20267523,3469.1,3468.3,2.88323]
[1721227145823,2.8826,3469.1,3468.3,2.88323]
[1721227145990,2.8826,3469.1,3468.2,3.43333]
[1721227145991,5.14036,3469.3,3468.4,3.43316]
[1721227146195,2.88261,3469.1,3468.4,2.88316]
[1721227146409,2.88261,3469.1,3468.5,0.55]
[1721227146883,2.88251,3469.2,3468.5,3.43309]
[1721227147778,2.2579,3469.3,3468.5,3.43309]
[1721227148027,5.14032,3469.3,3468.5,3.43309]
[1721227148227,3.0,3469.2,3468.5,3.43309]
[1721227148428,3.0,3469.2,3468.5,0.55]
[1721227148628,2.88254,3469.2,3468.3,0.55]
[1721227148917,3.0,3469.1,3468.3,0.55]
[1721227149122,2.88277,3468.9,3468.3,0.55]
[1721227150085,2.88277,3468.9,3468.0,5.3285]
[1721227150086,2.88277,3468.9,3468.1,0.55]
[1721227150282,2.88277,3468.9,3468.1,3.43338]
[1721227150624,2.88277,3468.9,3468.1,0.55]
[1721227150788,2.88301,3468.6,3468.1,0.55]
[1721227150982,2.88301,3468.6,3468.0,0.55]
[1721227151187,2.2792,3468.5,3467.9,2.88358]
[1721227151412,2.88284,3468.8,3467.9,2.88358]
[1721227151584,2.2792,3468.9,3468.0,2.445]
[1721227152083,5.16196,3468.9,3468.2,2.88328]
[1721227152412,0.04977985,3468.8,3468.3,0.55]
[1721227153252,2.88293,3468.7,3468.3,0.55]
[1721227153422,0.04977985,3468.8,3468.1,3.43341]
[1721227153739,0.04804558,3468.7,3468.2,2.8833]
[1721227153941,2.88276,3468.9,3468.3,0.55]
[1721227154145,2.883,3468.7,3468.3,0.55]
[1721227154300,0.04801135,3468.6,3468.1,0.55]
[1721227155853,0.0480981,3468.5,3467.9,3.43358]
[1721227156205,2.88302,3468.6,3467.9,3.43358]
[1721227156409,0.04806387,3468.4,3467.9,3.43358]
[1721227156652,2.88302,3468.6,3467.9,3.43358]
[1721227156653,0.04808633,3468.5,3467.9,3.43358]
[1721227156836,0.04801786,3468.3,3467.9,3.43358]
[1721227157150,0.04798363,3468.2,3467.9,3.43358]
[1721227157309,2.88302,3468.6,3467.9,3.43358]
[1721227157650,2.93118633,3468.5,3467.9,0.55]
[1721227158009,2.88319,3468.4,3467.8,0.55]
[1721227158450,0.04787441,3468.3,3467.8,0.55]
[1721227158610,0.04787441,3468.3,3467.9,2.445]
[1721227158808,2.88294,3468.7,3468.0,0.55]
[1721227159224,2.93117046,3468.6,3468.0,0.55]
[1721227159427,0.04817046,3468.6,3468.0,0.55]
[1721227159625,2.93119046,3468.6,3468.0,0.55]
[1721227161328,2.8831,3468.5,3468.0,0.55]
[1721227161538,0.04811377,3468.4,3468.0,0.55]
[1721227161777,2.93133377,3468.4,3468.0,0.55]
[1721227162157,0.04811377,3468.4,3467.7,0.55]
[1721227162472,2.88329,3468.3,3467.3,2.88408]
[1721227162667,2.88348,3468.1,3467.1,5.32918]
[1721227162856,2.88359,3467.9,3467.2,2.88416]
[1721227163256,0.04783323,3467.8,3467.2,2.88416]
[1721227163844,0.04783323,3467.8,3466.9,0.30057894]
[1721227163845,2.88389,3467.6,3466.9,0.30057894]
[1721227164343,5.33793,3467.7,3466.9,0.30057894]
[1721227164344,2.93137357,3467.5,3466.9,0.30057894]
[1721227164748,2.88418,3467.2,3466.7,2.445]
[1721227165057,2.88441,3467.0,3466.3,2.445]
[1721227165243,2.88442,3466.9,3466.3,2.445]
[1721227165430,2.93218462,3466.9,3466.3,2.445]
[1721227165632,2.93218462,3466.9,3466.4,0.30065253]
[1721227165863,2.88452,3466.8,3466.4,0.30065253]
[1721227166083,2.88459,3466.7,3466.4,0.30065253]
[1721227166241,2.88459,3466.7,3465.9,2.445]
[1721227166242,2.93216769,3466.7,3465.9,2.445]
[1721227166431,2.93216769,3466.7,3466.0,2.88516]
[1721227166839,2.88459,3466.7,3466.0,2.88516]
[1721227167371,2.88459,3466.7,3466.1,0.55]
[1721227167372,0.0472706,3466.6,3466.1,0.55]
[1721227167774,0.0472706,3466.6,3465.9,3.5110457]
[1721227167775,2.88494,3466.3,3465.9,0.30067514]
[1721227168093,0.04707464,3466.2,3465.7,2.93526555]
[1721227168255,0.04707464,3466.2,3465.8,1.36093967]
[1721227168459,2.4439,3466.9,3465.8,1.36093967]
[1721227168788,0.04728868,3466.8,3466.0,2.88515]
[1721227168941,0.04728868,3466.8,3466.1,0.55]
[1721227168942,2.8846,3466.7,3466.1,0.55]
[1721227169143,2.8846,3466.7,3465.9,2.995]
[1721227169144,0.04722015,3466.6,3465.9,2.995]
[1721227169379,0.04722015,3466.6,3466.0,0.72912052]
[1721227169600,0.04722015,3466.6,3466.1,0.55]
[1721227169746,2.93189015,3466.6,3466.1,0.55]
[1721227169946,2.93189015,3466.6,3465.1,2.88591]
[1721227169947,2.88505,3466.2,3465.5,10.08569536]
[1721227170146,2.88505,3466.2,3465.5,12.97125536]
[1721227170463,2.88505,3466.2,3465.5,14.34595409]
[1721227171289,2.88505,3466.2,3465.5,7.00595409]
[1721227171579,2.88505,3466.2,3465.6,3.43548]
[1721227171950,0.04701401,3466.1,3465.6,3.43548]
[1721227172145,2.88505,3466.2,3465.6,3.43548]
[1721227172446,0.04701401,3466.1,3465.7,1.04414341]
[1721227172646,0.04701401,3466.1,3465.8,0.55]
[1721227172847,2.88492,3466.3,3465.8,0.55]
[1721227173382,0.04704829,3466.2,3465.7,0.55]
[1721227173881,0.04704829,3466.2,3465.7,3.4354]
[1721227174047,0.04704829,3466.2,3465.8,0.90665954]
[1721227174247,2.88493,3466.3,3465.9,0.55]
[1721227174446,0.04697208,3466.1,3465.9,0.55]
[1721227174691,2.88493,3466.3,3465.9,0.55]
[1721227174841,0.0469378,3466.0,3465.9,0.55]
[1721227175047,2.88477,3466.5,3465.9,0.55]
[1721227175554,0.04707759,3466.4,3465.9,0.55]
[1721227175787,2.88498,3466.3,3465.9,0.55]
[1721227175977,2.93201904,3466.2,3465.6,0.55]
[1721227176172,2.88508,3466.1,3465.6,1.45669954]
[1721227176759,2.88468,3466.6,3465.7,2.88541]
[1721227177095,5.93186097,3466.5,3465.9,2.445]
[1721227177244,5.93186097,3466.5,3465.9,5.33025]
[1721227177445,3.04711097,3466.5,3466.0,3.43514]
[1721227177658,3.04711097,3466.5,3466.1,0.876539]
[1721227177659,0.04711097,3466.5,3466.1,0.876539]
[1721227177855,0.04711097,3466.5,3466.2,0.55]
[1721227178081,2.3104,3467.2,3466.2,3.43498]
[1721227178284,0.04707402,3466.4,3466.2,3.43498]
[1721227178501,2.3104,3467.2,3466.4,2.88476]
[1721227178795,2.88406,3467.4,3466.5,1.137976]
[1721227178796,0.04759656,3467.1,3466.5,1.137976]
[1721227178951,2.88397,3467.5,3466.7,2.88458]
[1721227179151,0.0477175,3467.4,3466.8,0.55]
[1721227179687,2.88365,3467.9,3467.0,2.88433]